Cogmind - Beta 13 @@@ ROGUE MODE // 2024.03.31 @ 16:32:32 Player: Cheeriohz Result: Destroyed by D-53 Grenadier with Mini Grenade Launcher Performance ------------- Evolutions (0) 0 Regions Visited (4) 800 Robots Destroyed (15) 75 Value Destroyed (320) 320 Prototype IDs (0) 0 Alien Tech Used (0) 0 Bonus (0) 0 TOTAL SCORE: 1195 Bonus ------- None Cogmind --------- Core Integrity 0/250 Matter 300/300 Energy 250/250 System Corruption 0% Temperature Cool (16) Movement Rolling (95) Ox1 Location -9/Mines Parts ------- > --- POWER (1) -------- Ion Engine > --- PROPULSION (2) --- Wheel Wheel > --- UTILITY (2) ------ Heat Sink Large Storage Unit > --- WEAPON (2) ------- Small Laser Small Laser > --- INVENTORY (15) --- Ion Engine Light Treads Light Treads Wheel Wheel Large Storage Unit Large Battery (200) Small Matter Pod (50) Medium Matter Pod (100) Sensor Array Signal Interpreter Light Assault Rifle Autogun Peak State ------------ > --- POWER ------------ Light Nuclear Core > --- PROPULSION ------- Wheel Wheel > --- UTILITY ---------- Medium Storage Unit Seismic Detector > --- WEAPON ----------- Assault Rifle Light Assault Rifle > --- INVENTORY -------- Light Ion Engine Light Treads Light Treads Wheel Wheel Wheel Wheel Heat Sink Small Storage Unit EM Pulse Gun [Rating: 10] Favorites ----------- Power Ion Engine Engine Ion Engine Power Core Light Nuclear Core Propulsion Wheel Leg Aluminum Leg Wheel Wheel Utility Medium Storage Unit Device Seismic Detector Storage Medium Storage Unit Weapon Light Assault Rifle Energy Gun Small Laser Ballistic Gun Light Assault Rifle Build | -11 -10 -10 -10 -9 ------- Run | Yrd Mat Min Exi Min Slots Evolved . | . . . . . Power . | . . . . . Propulsion . | . . . . . Utility . | . . . . . Weapon . | . . . . . Parts Attached 20 | 4 4 11 1 . Power 5 | . 2 3 . . Engine 3 | . 1 2 . . Core 2 | . 1 1 . . Reactor . | . . . . . Propulsion 7 | 2 1 4 . . Treads . | . . . . . Leg . | . . . . . Wheel 7 | 2 1 4 . . Hover . | . . . . . Flight . | . . . . . Utility 4 | 1 1 1 1 . Device 2 | 1 . 1 . . Storage 2 | . 1 . 1 . Processor . | . . . . . Hackware . | . . . . . Protection . | . . . . . Artifact . | . . . . . Weapon 4 | 1 . 3 . . Energy Gun 3 | . . 3 . . Energy Cannon . | . . . . . Ballistic Gun 1 | 1 . . . . Ballistic Cannon . | . . . . . Launcher . | . . . . . Special Weapon . | . . . . . Impact Weapon . | . . . . . Slashing Weapon . | . . . . . Piercing Weapon . | . . . . . Special Melee Weapon . | . . . . . Unidentified Prototypes . | . . . . . Parts Lost 8 | . 1 7 . . Power 2 | . 1 1 . . Propulsion 3 | . . 3 . . Utility 1 | . . 1 . . Weapon 2 | . . 2 . . Highest Loss Streak 4 | . 1 4 . . To Critical Strikes . | . . . . . Average Slot Usage (%) 79 | . 99 63 100 100 Engine 11 | . 6 12 14 14 Core 2 | . 6 1 . . Wheel 21 | . 28 15 28 28 Device 7 | . 14 2 14 14 Storage 14 | . 14 14 14 14 Energy Gun 7 | . . 2 28 28 Ballistic Gun 14 | . 28 13 . . Naked Turns . | . . . . . Heaviest Build 28 | 12 19 20 28 28 Greatest Support 20 | 20 20 20 20 20 Greatest Overweight (x) 1 | . . 1 1 1 Average Overweight (x) . | . . . . 1 Largest Inventory Capacity 15 | 8 10 10 15 15 Average Capacity 10 | 8 9 10 12 15 Most Carried 13 | 8 10 10 12 13 Average Carried 8 | 6 9 8 10 12 Final Capacity 15 | 8 10 10 15 15 Final Carried 13 | 7 10 10 12 13 Class Distribution -------------------- 73% | Mutant 26% | Scavenger-Mutant Dominant Class ---------------- Mutant | -10/Materials Mutant | -10/Mines Scavenger-Mutant | -10/Exiles Scavenger-Mutant | -9/Mines Resources | -11 -10 -10 -10 -9 ----------- Run | Yrd Mat Min Exi Min Matter Collected 702 | 323 136 233 10 . Remotely . | . . . . . Salvage Created 519 | 174 172 173 . . Parts 30 | 10 14 6 . . Haulers Intercepted . | . . . . . Recyclers Shooed . | . . . . . Parts Field Recycled . | . . . . . Retrieved Matter . | . . . . . Parts Self-Destructed . | . . . . . Prevented . | . . . . . Kills | -11 -10 -10 -10 -9 ------- Run | Yrd Mat Min Exi Min Combat Hostiles Destroyed 8 | . 3 5 . . Guns 8 | . 3 5 . . Classes Destroyed 7 | 3 3 1 . . Worker 1 | 1 . . . . Builder 1 | . 1 . . . Tunneler 4 | 4 . . . . Recycler 1 | 1 . . . . Watcher 1 | . 1 . . . Grunt 7 | . 3 4 . . Assembled 1 | . . 1 . . Best Kill Streak 3 | 3 1 2 . . Combat Bots Only 2 | . 1 2 . . Max Kills in Single Turn 1 | 1 1 1 . . Gunslinging . | . . . . . Exploded . | . . . . . Melee . | . . . . . Uniques/NPCs Destroyed . | . . . . . Combat | -11 -10 -10 -10 -9 -------- Run | Yrd Mat Min Exi Min Hostile Shots Fired 61 | . 19 36 . 6 Missed 7 | . 3 4 . . Damage Taken 863 | . 224 530 . 109 Core 251 | . . 215 . 36 Absorbed by Shields . | . . . . . Core Remaining (%) 100 | 100 . . . . Volleys Fired 91 | 28 21 40 . 2 Largest 2 | 2 2 2 . 2 Hottest 80 | 40 40 80 . 80 Shots Fired 148 | 56 42 46 . 4 Gun 148 | 56 42 46 . 4 Cannon . | . . . . . Launcher . | . . . . . Special . | . . . . . Kinetic 138 | 56 42 40 . . Thermal 10 | . . 6 . 4 Explosive . | . . . . . Electromagnetic . | . . . . . Robot Hit Streak 13 | 10 10 13 . 1 Robot Miss Streak 4 | 4 3 2 . 2 Penetration Max . | . . . . . Secondary Targets 1 | . . 1 . . Max Gunslinging Chain 1 | . . 1 . . Shots Hit Robots 101 | 38 29 33 . 1 Core Hits 38 | 12 12 14 . . Critical Kills . | . . . . . Critical Parts Destroyed 1 | . 1 . . . Critical Strikes 1 | . 1 . . . Destroy 1 | . 1 . . . Melee Attacks . | . . . . . Impact . | . . . . . Slashing . | . . . . . Piercing . | . . . . . Sneak Attacks . | . . . . . Combat Hostiles . | . . . . . Follow-up Attacks . | . . . . . Damage Inflicted 1036 | 397 308 321 . 10 Guns 1036 | 397 308 321 . 10 Cannons . | . . . . . Explosions . | . . . . . Melee . | . . . . . Ramming . | . . . . . Kinetic 973 | 397 308 268 . . Thermal 63 | . . 53 . 10 Explosive . | . . . . . Electromagnetic . | . . . . . Impact . | . . . . . Slashing . | . . . . . Piercing . | . . . . . Highest Corruption . | . . . . . Average Corruption . | . . . . . Corruption Purged . | . . . . . Corruption Blocked . | . . . . . Overload Shots . | . . . . . Overflow Damage . | . . . . . Projectiles . | . . . . . Explosions . | . . . . . Melee . | . . . . . Knockbacks . | . . . . . Impact . | . . . . . Kinetic . | . . . . . Secondary . | . . . . . Self-Inflicted Damage . | . . . . . Shots . | . . . . . Rammed . | . . . . . Targets Rammed . | . . . . . Kicked . | . . . . . Crushed . | . . . . . Highest Temperature 30 | . 18 16 . 30 Average Temperature 8 | . 7 6 . 18 Received Heat Transfer 435 | . 126 189 . 120 Siege Activations . | . . . . . Robots Corrupted . | . . . . . Combat Hostiles . | . . . . . Parts Fried . | . . . . . Impact Corruptions . | . . . . . Robots Melted . | . . . . . Combat Hostiles . | . . . . . Parts Melted 1 | . . 1 . . Heat Transferred 150 | . . 125 . 25 Parts Sabotaged . | . . . . . Parts Stolen . | . . . . . Parts Stripped . | . . . . . Power Chain Reactions . | . . . . . Alert | -11 -10 -10 -10 -9 ------- Run | Yrd Mat Min Exi Min Peak Influence 181 | 30 181 90 . . Initial 70 | . 19 70 . . Average 44 | 15 94 35 . . Maximum Alert Level . | . . . . . Low Security (%) 100 | 100 100 100 . 100 Level 1 . | . . . . . Level 2 . | . . . . . Level 3 . | . . . . . Level 4 . | . . . . . Level 5 . | . . . . . High Security . | . . . . . Max Security . | . . . . . Squads Dispatched 1 | . 1 . . . Investigation . | . . . . . Extermination . | . . . . . Reinforcement 1 | . 1 . . . Assault . | . . . . . Garrison . | . . . . . Intercept . | . . . . . Searches Triggered . | . . . . . Construction Impeded . | . . . . . Haulers Reinforced . | . . . . . Active Scanning Responses . | . . . . . Cargo Convoy Interrupts . | . . . . . Stealth | -11 -10 -10 -10 -9 --------- Run | Yrd Mat Min Exi Min Distress Signals 2 | . . 2 . . Communications Jammed . | . . . . . Distress Signals . | . . . . . Times Spotted 23 | . 10 5 . 8 Peak Tracking Total 8 | . 2 2 . 8 Tactical Retreats 3 | . 3 . . . Traps | -11 -10 -10 -10 -9 ------- Run | Yrd Mat Min Exi Min Traps Triggered . | . . . . . Indirectly . | . . . . . Trap Hack Attempts . | . . . . . Triggered . | . . . . . Disarmed . | . . . . . Reprogrammed . | . . . . . Reused . | . . . . . Traps Extracted . | . . . . . Installed . | . . . . . Triggered . | . . . . . Machines | -11 -10 -10 -10 -9 ---------- Run | Yrd Mat Min Exi Min Machines Disabled . | . . . . . Max in Single Turn . | . . . . . Machines Repaired . | . . . . . Machines Dismantled . | . . . . . Machines Sabotaged . | . . . . . Overloaded Fab Kills . | . . . . . Hacking | -11 -10 -10 -10 -9 --------- Run | Yrd Mat Min Exi Min Machines Accessed . | . . . . . Terminals . | . . . . . Fabricators . | . . . . . Repair Stations . | . . . . . Recycling Units . | . . . . . Scanalyzers . | . . . . . Garrison Access . | . . . . . Total Hacks . | . . . . . Successful . | . . . . . Failed . | . . . . . Catastrophic . | . . . . . Database Lockouts . | . . . . . Manual . | . . . . . Terminals . | . . . . . Fabricators . | . . . . . Repair Stations . | . . . . . Recycling Units . | . . . . . Scanalyzers . | . . . . . Garrison Access . | . . . . . Terminal Hacks . | . . . . . Fabricator Hacks . | . . . . . Repair Station Hacks . | . . . . . Recycling Unit Hacks . | . . . . . Scanalyzer . | . . . . . Garrison Access Hacks . | . . . . . Unauthorized Hacks . | . . . . . Terminals . | . . . . . Fabricators . | . . . . . Repair Stations . | . . . . . Recycling Units . | . . . . . Scanalyzers . | . . . . . Garrison Access . | . . . . . Data Cores Recovered . | . . . . . Used . | . . . . . Hacking Detections . | . . . . . Full Trace Events . | . . . . . Feedback Events . | . . . . . Feedback Blocked . | . . . . . Robot Schematics Acquired . | . . . . . Robots Built . | . . . . . Authchips . | . . . . . Time . | . . . . . Total Robot Build Rating . | . . . . . Part Schematics Acquired . | . . . . . Parts Built . | . . . . . Authchips . | . . . . . Time . | . . . . . Total Part Build Rating . | . . . . . Parts Repaired . | . . . . . Time . | . . . . . Parts Recycled . | . . . . . Recycled Matter . | . . . . . Retrieved Matter . | . . . . . Retrieved Components . | . . . . . Parts Scanalyzed . | . . . . . Part Schematics Acquired . | . . . . . Parts Damaged . | . . . . . Bothacking | -11 -10 -10 -10 -9 ------------ Run | Yrd Mat Min Exi Min Used RIF Installer . | . . . . . Robots Hacked . | . . . . . Non-combat . | . . . . . Combat . | . . . . . Robot Hacks Applied . | . . . . . Relay Couplers Released . | . . . . . Fabnet Peak Effective % . | . . . . . Robots Rewired . | . . . . . Allies Hacked . | . . . . . Hacks Repelled . | . . . . . Allies | -11 -10 -10 -10 -9 -------- Run | Yrd Mat Min Exi Min Total Allies . | . . . . . Largest Group . | . . . . . Highest-Rated Group . | . . . . . Highest-Rated Ally . | . . . . . Total Orders . | . . . . . Ally Attacks . | . . . . . Total Damage . | . . . . . Kills . | . . . . . Allies Corrupted . | . . . . . Allies Melted . | . . . . . Intel | -11 -10 -10 -10 -9 ------- Run | Yrd Mat Min Exi Min Robot Analysis Total . | . . . . . Derelict Logs Recovered . | . . . . . Drone Launches . | . . . . . Drone Recoveries . | . . . . . Exploration | -11 -10 -10 -10 -9 ------------- Run | Yrd Mat Min Exi Min Turns Passed 1385 | 165 291 680 157 92 Spaces Moved 654 | 70 209 110 179 86 Core . | . . . . . Treads . | . . . . . Legs 55 | 55 . . . . Wheels 599 | 15 209 110 179 86 Hover . | . . . . . Flight . | . . . . . Fastest Speed 80 | 80 80 80 80 95 Average Speed 86 | 111 80 80 85 95 Slowest Speed 120 | 120 80 95 95 95 Overloaded Moves . | . . . . . Propulsion Burnouts . | . . . . . Robots Hopped . | . . . . . Cave-ins Triggered . | . . . . . Exploration Rate (%) 26 | 4 29 23 50 26 Regions Visited 4 Branch Regions 3 Pre-discovered Areas . | . . . . . Known Exits Taken . | . . . . . Unknown Exits Taken 4 | 1 1 1 1 . Scrap Searched 1 | . . . . 1 Spaces Dug . | . . . . . Terrain Destroyed . | . . . . . Melee . | . . . . . Projectile . | . . . . . AOE . | . . . . . Terrain Rammed . | . . . . . Walls Destroyed . | . . . . . Machines Disabled . | . . . . . Actions | -11 -10 -10 -10 -9 --------- Run | Yrd Mat Min Exi Min Total 1339 | 106 297 660 184 92 Wait 553 | . 53 497 . 3 Move 650 | 69 208 109 178 86 Hop . | . . . . . Pick Up 14 | 2 6 2 3 1 Fast Attach 4 | 2 . 2 . . Attach 8 | 1 1 6 . . Detach 2 | 1 . 1 . . Swap 8 | 1 3 3 1 . Drop 9 | 2 5 . 2 . Fire 91 | 28 21 40 . 2 Melee . | . . . . . Ram . | . . . . . Kick . | . . . . . Crush . | . . . . . Escape Stasis . | . . . . . Rewire . | . . . . . Trap . | . . . . . Miscellaneous . | . . . . . Route ------- -11/Scrapyard -10/Materials -10/Mines -10/Exiles (discovered 2 exits: [*Min x2]) -9/Mines History --------- Turn | Location | Event 1 | -11/Scrapyard | Discovered new exit (range 3) 166 | -11/Scrapyard | Entered Materials 305 | -10/Materials | Build established: Mutant 321 | -10/Materials | Discovered new exit (range 15) 457 | -10/Materials | Entered Mines 494 | -10/Mines | Lost 3 parts (2n1w) 538 | -10/Mines | Excavation squad dispatched 538 | -10/Mines | A large section of the Mines collapsed 554 | -10/Mines | Core integrity fell below 50% 582 | -10/Mines | Lost 4 parts (1p1n1u1w) 788 | -10/Mines | Excavation squad dispatched 1038 | -10/Mines | Excavation squad dispatched 1077 | -10/Mines | Core integrity fell below 20% 1134 | -10/Mines | Deemed a non-threat by the Exiles lab entrance 1134 | -10/Mines | Discovered new exit (range 5) 1137 | -10/Mines | Entered Exiles 1149 | -10/Exiles | Discovered new exit (range 15) 1158 | -10/Exiles | Met 8R-AWN 1173 | -10/Exiles | Met EX-HEX 1203 | -10/Exiles | Met EX-DEC 1285 | -10/Exiles | Discovered new exit (range 11) 1294 | -10/Exiles | Entered Mines 1350 | -9/Mines | Assembled infested the area 1355 | -9/Mines | Assisted by a Guerilla fighting off Assembled 1372 | -9/Mines | Build established: Scavenger-Mutant 1386 | -9/Mines | Destroyed by D-53 Grenadier with Mini Grenade Launcher Last Messages --------------- LOCATION=UNKNOWN GOAL=ESCAPE 01334_ Searching scrap... 01334_ Found Terrain Scan Processor. 01334_ Found Autogun. 01334_ Found Plasma Cutter. 01334_ Found Cargo Storage Unit. 01334_ Found 34 Matter. 01336_ Acquired Autogun. 01350_ ALERT: Infestation in the mines, dispatching Demolisher response squad. 01355_ A derelict emerges from the shadows: "You need to get out of here! I've been tracking a group of Assembled to figure out where they're coming from, and they're closing on this area, come on!" 01370_ Q2-EZ7(h): "I'll hold them off! Go on ahead or try to find another way!" 01372_ HV Slug penetrates Wall. 01373_ Critical hit (Burn: +80). 01383_ C-30 ARC bursts open, deploying its payload. 01383_ D-53 Grenadier unfolds itself. Map ----- +----------------------------------------------------+ | ?????????????????????????????????????????????????? | | ?????????????????????????????????????????????????? | | ?????????????????????????????????????????????????? | | ?????????????????????????????????????????????????? | | ?????????????????????????????????????????????????? | | ?????????????????????????????????????????????????? | | ?????????????????????????????????????????????????? | | ?????????????????????????????????????????????????? | | ?????????????????????????????????????????????????? | | ?????????????????????????????????????????????????? | | ?????????????????????????????????????????????????? | | ?????????????????????????????????????????????????? | | ?????????????????????????????????????????????????? | | ?????????????????????????????????????????????????? | | ?????????????????????????????????????????????????? | | ?????????????????????????????????????????????????? | | ?????????????????????????????????????????????????? | | ?????????????????????????????????????????????????? | | ?????????????????????????????????????????????????? | | ?????????????????????????????????????????????????? | | ????????????????????????###??????????????????????? | | ????????????????????????# ??????????????????????? | | ???????????????????????##%##?????????????????????? | | ???????????????????????# #?????????????????????? | | ??????????????????????## d #?????????????????????? | | ??????????????????????# @d#?????????????????????? | | ??????????????????????# #?????????????????????? | | ???????????????????##### a #?????????????????????? | | ???????????????????# a ##?????????????????????? | | ?????????????# ##### #####??????????????????????? | | ?????????????# #??????????????????????????? | | ?????????????####### #??????????????????????????? | | ???????????????????# #??????????????????????###?? | | ??????????????????## ##????????????????????# #? | | ?????????????????## #???????????????????? # | | ?????????????????# #????????????????????? | | ?????????????????# ##??????###???????????? | | ?????????????????# ##?????# ?????????????# | | ?????????????????# ##????# #??????????????# | | ?????????????????# ##???# #???????????????# | | ?????????????????# ##### #???????????????# | | ????????????????## """ ## ###????????????## | | ???????????????## """ #??????????### | | ??????????????## """ #?####????## | | ?????????????## ######## ### ##???# | | ??????? ## ##?????## ! #???## | | ???????? ##?????# % #????## | | ???????? ## #?????# |! ######### | | ?????????? ###?## #?????## | | ???????????? ??????### ##??????## ## | +----------------------------------------------------+ Best States ------------- Heat Dissipation 35 Energy Generation 14 Energy Capacity 250 Matter Stores 300 Matter Capacity 300 Sight Range 16 Terrain Scan Density 10 Evasion (%) 55 Item Schematics ----------------- None Robot Schematics ------------------ None Fabricated ------------ Nothing Alien Tech Used ----------------- None Achievements -------------- None Challenges ------------ None Game ------ Seed BeamGaussDisintegrator Manual? 0 Play Time 00:09:42 Cumulative 84.0 hours Start 2024.03.31 @ 16:14:47 End 2024.03.31 @ 16:32:32 Sessions 1 Manual Loads 0 Difficulty Rogue Special Mode None Game No. 78 Rogue 78 Adventurer 0 Explorer 0 Win Type - Total 2 Types 2/0/0/0/0/0/0/0/0 Lore% 39 Gallery% 56 Achievement% 41 Wizard Run 0 Options --------- Layout 1 ASCII 0 Keyboard 1 Movement Numpad Keybinds 0 Fullscreen 1 Font 32/SmallcapsGlow Map View 77x35 Zoom Use 0% Tactical HUD 1 Map Filters NONE Filters NONE Steam 1 RUN: f7385340-5449-48ee-b0a5-01cd963945d9